fUSD/lending_fUSD_20240520
["ID","MTS","AMOUNT","RATE_DAILY","PERIOD"]
[327543829,1716207038136,-510.15,0.00012458,2]
[327543830,1716207038145,-250.0,0.0001255,2]
[327543831,1716207038154,-167.53,0.00012581,2]
[327543832,1716207038166,-250.0,0.00012627,2]
[327543833,1716207038175,-167.28,0.0001288,2]
[327543834,1716207038184,-1000.0,0.0001289,2]
[327543835,1716207038194,-189.62252636,0.00012898,2]
[327543836,1716207038205,-1000.0,0.00012899,2]
[327543837,1716207038216,-294.83570765,0.00012899,2]
[327543838,1716207038225,-500.0,0.000129,2]
[327543839,1716207038234,-2530.36891692,0.000129,2]
[327543840,1716207038245,-695.41650705,0.000129,2]
[327543841,1716207038268,-496.816951,0.000129,2]
[327543842,1716207038298,-17936.93518799,0.000129,2]
[327543843,1716207038309,-300.001004,0.000129,2]
[327543844,1716207038328,-6458.32762331,0.000129,2]
[327543845,1716207038386,-4852.6012,0.000129,2]
[327543857,1716207040217,-6131.5,0.000129,2]
[327543858,1716207040229,-347.41875626,0.000129,2]
[327543859,1716207040278,-15051.5353797,0.000129,2]
[327543860,1716207040289,-3364.15,0.000129,2]
[327543861,1716207040300,-303.27304,0.000129,2]
[327543862,1716207040445,-329.17,0.000129,2]
[327543863,1716207040612,-59875.09910016,0.000129,2]
[327543864,1716207040624,-1641.30252,0.000129,2]
[327543865,1716207040636,-774.040005,0.000129,2]
[327543875,1716207043099,-1439.08969512,0.000129,2]
[327543876,1716207043162,-1732.275,0.000129,2]
[327543877,1716207043220,-25884.392834,0.000129,2]
[327543878,1716207043285,-926.12701985,0.000129,2]
[327543879,1716207043585,-11524.24592764,0.000129,2]
[327543882,1716207043699,-5893.04789687,0.000129,2]
[327543884,1716207043738,-21013.36245197,0.000129,2]
[327543886,1716207043754,-1487.856,0.000129,2]
[327543896,1716207046215,-231.14996347,0.000129,2]
[327543897,1716207046227,-1493.47528518,0.000129,2]
[327543898,1716207046347,-2741.43912424,0.000129,2]
[327543899,1716207047517,-629.27928532,0.000129,2]
[327543902,1716207068369,335.0,0.0001959,15]
[327543903,1716207068924,335.0,0.0001958,15]
[327543904,1716207069931,335.0,0.0001957,15]
[327543907,1716207183698,226.0,0.0001959,15]
[327543908,1716207184197,226.0,0.0001958,15]
[327543909,1716207185113,226.0,0.0001957,15]
[327543910,1716207186305,235.0,0.0001959,15]
[327543911,1716207186988,235.0,0.0001958,15]
[327543912,1716207187632,235.0,0.0001957,15]
[327543913,1716207304963,164.0,0.0001959,15]
[327543914,1716207305657,164.0,0.0001958,15]
[327543915,1716207306272,164.0,0.0001957,15]
[327543916,1716207424492,159.0,0.0001959,15]
[327543917,1716207425192,159.0,0.0001958,15]
[327543918,1716207425562,150.5,0.0001959,15]
[327543919,1716207425612,159.0,0.0001957,15]
[327543920,1716207426128,150.5,0.0001958,15]
[327543921,1716207426691,150.5,0.0001957,15]
[327543922,1716207546015,150.5,0.0001959,15]
[327543923,1716207546541,150.5,0.0001958,15]
[327543924,1716207547200,150.5,0.0001957,15]
[327543925,1716207663512,150.5,0.0001959,15]
[327543926,1716207664154,183.9,0.0001958,15]
[327543927,1716207664622,150.5,0.0001959,15]
[327543928,1716207665353,150.5,0.0001958,15]
[327543929,1716207665881,253.7,0.0001959,15]
[327543930,1716207665930,150.5,0.0001957,15]
[327543932,1716207906552,150.5,0.0001959,15]
[327543933,1716207906999,150.5,0.0001958,15]
[327543934,1716207907592,150.5,0.0001957,15]
[327543939,1716208025112,321.06,9.827e-05,2]
[327543940,1716208145717,210.0,0.0001959,15]
[327543957,1716208232418,-516.19365267,0.00010542,2]
[327543958,1716208232428,-451.99247167,0.00010543,2]
[327543959,1716208232438,-5400.3,0.00010543,2]
[327543960,1716208232447,-707.0,0.00010544,2]
[327543961,1716208232456,-514.06037216,0.00010544,2]
[327543962,1716208232466,-150.0,0.00010544,2]
[327543963,1716208232475,-939.10970596,0.00010546,2]
[327543964,1716208232484,-7356.28852677,0.00010549,2]
[327543965,1716208232493,-7469.6839,0.0001059,2]
[327543966,1716208232501,-507.5,0.0001152,2]
[327543967,1716208232511,-870.9,0.00011543,2]
[327543968,1716208232524,-3718.25,0.00011548,2]
[327543969,1716208232534,-499.99,0.00011548,2]
[327543970,1716208232543,-3153.91,0.00011601,2]
[327543971,1716208232552,-10000.0,0.00011643,2]
[327543972,1716208232563,-1000.0,0.00012048,2]
[327543973,1716208232572,-321.06,0.00012091,2]
[327543974,1716208232582,-3089.57,0.00012194,2]
[327543975,1716208232591,-250.0,0.00012675,2]
[327543976,1716208232603,-23890.0,0.00012675,2]
[327543977,1716208232611,-250.0,0.00012675,2]
[327543978,1716208232621,-300.0,0.00012675,2]
[327543979,1716208232634,-4845.38,0.00012675,2]
[327543980,1716208232644,-10272.8824,0.00012889,2]
[327543981,1716208232656,-688.01329198,0.0001289,2]
[327543982,1716208232665,-1490.4363639,0.000129,2]
[327543983,1716208232674,-163.89192495,0.000129,2]
[327543984,1716208232683,-1495.58262,0.000129,2]
[327543985,1716208232691,-218.88697178,0.00012987,2]
[327543987,1716208232701,-2958.81626482,0.00012987,2]
[327543988,1716208232710,-783.52135115,0.00012988,2]
[327543990,1716208232721,-334894.81279438,0.00012989,2]
[327543991,1716208232731,-165832.34932037,0.0001299,2]
[327543992,1716208232748,-541.92053171,0.0001299,2]
[327543993,1716208232763,-1320.12980124,0.0001299,2]
[327543994,1716208232790,-22093.56540686,0.0001299,2]
[327543995,1716208232802,-1074.50342781,0.0001299,2]
[327543996,1716208232848,-443.7326138,0.0001299,2]
[327543998,1716208238510,-529.36160903,0.0001299,2]
[327543999,1716208238524,-7500.45083114,0.0001299,2]
[327544000,1716208238660,-483.23289608,0.0001299,2]
[327544004,1716208240783,-132516.72333326,0.0001299,2]
[327544005,1716208240793,-1495.58262,0.0001299,2]
[327544006,1716208240803,-428.3967097,0.00012992,2]
[327544007,1716208240812,-2974.2477066,0.00012994,2]
[327544008,1716208240822,-55561.4696389,0.00012994,2]
[327544009,1716208240832,-6994.8556803,0.00012994,2]
[327544010,1716208240842,-364.27737293,0.00012998,2]
[327544011,1716208240852,-1394.26506453,0.00012999,2]
[327544012,1716208240862,-5119.49690959,0.00012999,3]
[327544013,1716208240872,-549.0,0.00012999,2]
[327544014,1716208240882,-128376.76461294,0.00013,2]
[327544015,1716208240894,-59772.19717433,0.00013,2]
[327544016,1716208240905,-157463.22863806,0.00013,2]
[327544017,1716208240915,-617946.77136444,0.00013,2]
[327544060,1716208243552,-1105.09448034,0.00013,2]
[327544061,1716208243643,-5148.54547893,0.00013,2]
[327544062,1716208243662,-342.5568,0.00013,2]
[327544077,1716208246808,-451.99247167,0.00012989,2]
[327544079,1716208246818,-514.06037216,0.00012989,2]
[327544081,1716208246827,-12370.76188861,0.00013,2]
[327544084,1716208246844,-1340.508,0.00013,2]
[327544086,1716208246859,-2304.13470654,0.00013,2]
[327544128,1716208264188,226.0,0.0001958,15]
[327544129,1716208264545,226.0,0.0001957,15]
[327544130,1716208265043,226.0,0.0001956,15]
[327544131,1716208265757,210.0,0.0001958,15]
[327544132,1716208385250,158.0,0.0001958,15]
[327544133,1716208385831,158.0,0.0001957,15]
[327544134,1716208386496,158.0,0.0001956,15]
[327544135,1716208387028,158.0,0.0001979,15]
[327544136,1716208387528,158.0,0.0001978,15]
[327544137,1716208388677,158.0,0.0001977,15]
[327544138,1716208389850,158.0,0.0001979,15]
[327544139,1716208390348,158.0,0.0001978,15]
[327544140,1716208505028,150.5,0.0001958,15]
[327544141,1716208505586,150.5,0.0001958,15]
[327544142,1716208505778,150.5,0.0001957,15]
[327544143,1716208505907,172.5,0.0001957,15]
[327544144,1716208506126,150.5,0.0001956,15]
[327544145,1716208506696,150.5,0.00019962,15]
[327544146,1716208507189,150.5,0.00019952,15]
[327544147,1716208507760,150.5,0.00019942,15]
[327544148,1716208508996,150.5,0.0001997,15]
[327544149,1716208509609,150.5,0.0001996,15]
[327544151,1716208745624,173.0,0.0001958,15]
[327544165,1716209431785,-267.82545389,0.0001072,2]
[327544166,1716209431797,-2813.5563,0.0001072,2]
[327544167,1716209431806,-451.99247167,0.00010721,2]
[327544168,1716209431817,-2918.4686413,0.00010727,2]
[327544169,1716209431827,-319.33,0.00010757,2]
[327544170,1716209431837,-1000.0,0.00012416,2]
[327544171,1716209431847,-179.82,0.00012574,2]
[327544172,1716209431857,-5691.522491,0.00012575,2]
[327544173,1716209431868,-3453.58111738,0.00012575,2]
[327544174,1716209431902,-3124.98425749,0.00012575,2]
[327544198,1716209438057,-724.25989765,0.00012575,2]
[327544199,1716209438112,-259.80183648,0.00012575,2]
[327544200,1716209438122,-150.0,0.00012658,2]
[327544201,1716209438132,-152.01,0.00012675,2]
[327544202,1716209438141,-250.0,0.00012675,2]
[327544203,1716209438151,-3900.3752652,0.00012675,2]
[327544204,1716209438163,-16424.6247348,0.00012675,2]
[327544205,1716209438172,-1552.59788043,0.00012704,2]
[327544206,1716209438182,-1595.79,0.00012729,2]
[327544207,1716209438192,-250.0,0.00012746,2]
[327544208,1716209438202,-187.45,0.00012761,2]
[327544209,1716209438212,-170.35592764,0.000129,2]
[327544210,1716209438222,-999.99,0.000129,2]
[327544211,1716209438231,-1366.23333363,0.000129,2]
[327544212,1716209438241,-352.51,0.000129,2]
[327544213,1716209438250,-642.1457392,0.000129,2]
[327544214,1716209438259,-3392.746764,0.00012994,2]
[327544215,1716209438269,-7979.0845669,0.00012994,2]
[327544216,1716209438278,-234.22233037,0.00012998,2]
[327544217,1716209438288,-499.99,0.00012998,2]
[327544218,1716209438298,-305.7760072,0.00012999,2]
[327544219,1716209438307,-1042.71750549,0.00012999,3]
[327544220,1716209438317,-543.0,0.00013,2]
[327544221,1716209438327,-312305.43590948,0.00013,2]
[327544222,1716209438337,-210963.59942273,0.00013,2]
[327544223,1716209438405,-1200.0,0.00013,2]
[327544226,1716209439853,-10911.84726581,0.00013,2]
[327544227,1716209441724,-518.48040912,0.00013,2]
[327544228,1716209441991,-840.25339436,0.00013,2]
[327544229,1716209442002,-335024.99999956,0.00013,2]
[327544230,1716209442014,-564147.90390272,0.00013,2]
[327544231,1716209442024,-207227.09611478,0.00013,2]
[327544232,1716209442050,-401.91663883,0.00013,2]
[327544233,1716209442062,-804.97781834,0.00013,2]
[327544319,1716209442823,-1368.36706911,0.00013,2]
[327544324,1716209442849,-437.67425616,0.00013,2]
[327544326,1716209442861,-823.23242849,0.00013,2]
[327544328,1716209442871,-7396.67920382,0.00013,2]
[327544330,1716209442883,-325.31628963,0.00013,2]
[327544333,1716209442894,-376.69655341,0.00013,2]
[327544341,1716209442968,-17985.92702241,0.00013,2]
[327544343,1716209442979,-1137.48297538,0.00013,2]
[327544345,1716209442993,-10523.92625,0.00013,2]
[327544348,1716209443013,-1308.97457036,0.00013,2]
[327544351,1716209443024,-1176.64081656,0.00013,2]
[327544365,1716209443153,-709.17,0.00013,2]
[327544385,1716209446697,-267.82545389,0.00012998,2]
[327544386,1716209446707,-262.62631566,0.00012999,2]
[327544387,1716209446718,-1428.50005517,0.00012999,2]
[327544388,1716209446729,-463.91064,0.00012999,2]
[327544389,1716209446781,-658.51928917,0.00012999,2]
[327544390,1716209446790,-451.99247167,0.00012999,2]
[327544391,1716209446800,-286.25574643,0.00013,2]
[327544392,1716209446828,-1284.1755862,0.00013,2]
[327544393,1716209446841,-447.94561061,0.00013,2]
[327544394,1716209446852,-716.02510606,0.00013,2]
[327544395,1716209446864,-527.59553934,0.00013,2]
[327544396,1716209446879,-462.1772013,0.00013,2]
[327544397,1716209446890,-691.03903521,0.00013,2]
[327544398,1716209446902,-689.86294699,0.00013,2]
[327544399,1716209446917,-553.0509096,0.00013,2]
[327544400,1716209446928,-509.40705301,0.00013,2]
[327544401,1716209446954,-1411.67549481,0.00013,2]
[327544402,1716209446965,-999.02301719,0.00013,2]
[327544403,1716209446976,-534.16021158,0.00013,2]
[327544404,1716209446990,-1603.20601043,0.00013,2]
[327544405,1716209447001,-896.01,0.00013,2]
[327544406,1716209447017,-750.05803887,0.00013,2]
[327544407,1716209447028,-3054.89154427,0.00013,2]
[327544408,1716209447040,-431.96925012,0.00013,2]
[327544409,1716209447105,-4416.15,0.00013,2]
[327544427,1716209983346,311.07,9.615e-05,2]
[327544446,1716210516041,295.51,9.285e-05,2]
[327544455,1716210632090,-267.82545389,0.00011204,2]
[327544456,1716210632100,-485.83776114,0.00011205,2]
[327544457,1716210632356,-40.07046238,0.00011205,2]
[327544458,1716210632367,-155.0,0.00011206,2]
[327544459,1716210632376,-2813.5563,0.00011206,2]
[327544460,1716210632386,-451.99247167,0.00011207,2]
[327544461,1716210632396,-23880.0,0.00011212,2]
[327544462,1716210632405,-150.0,0.00011222,2]
[327544463,1716210632415,-627.99,0.00011247,2]
[327544464,1716210632425,-968.89,0.00011259,2]
[327544465,1716210632435,-250.0,0.00011263,2]
[327544466,1716210632444,-800.0,0.00011284,2]
[327544467,1716210632454,-304.56,0.00011289,2]
[327544468,1716210632466,-1778.93818078,0.00011337,2]
[327544469,1716210632475,-2918.4686413,0.00011337,2]
[327544470,1716210632484,-499.99,0.00011337,2]
[327544471,1716210632493,-1309.29,0.00011339,2]
[327544472,1716210632502,-709.19,0.00011339,2]
[327544473,1716210632513,-150.99,0.00011339,2]
[327544474,1716210632522,-289.59,0.00011378,2]
[327544475,1716210632532,-733.5,0.00011442,2]
[327544476,1716210632541,-250.0,0.00011453,2]
[327544477,1716210632551,-2854.68,0.00011453,2]
[327544478,1716210632561,-200.0,0.00011512,2]
[327544479,1716210632571,-299.44,0.00011541,2]
[327544480,1716210632580,-295.51,0.00011549,2]
[327544481,1716210632590,-200.0,0.00011562,2]
[327544482,1716210632599,-151.92,0.00012245,2]
[327544483,1716210632608,-151.92,0.00012249,2]
[327544484,1716210632617,-151.92,0.00012254,2]
[327544485,1716210632627,-151.92,0.00012259,2]
[327544486,1716210632636,-151.92,0.00012263,2]
[327544487,1716210632646,-151.92,0.00012268,2]
[327544488,1716210632655,-151.92,0.00012273,2]
[327544489,1716210632664,-151.92,0.00012278,2]
[327544490,1716210632674,-151.92,0.00012282,2]
[327544491,1716210632683,-151.92,0.00012287,2]
[327544492,1716210632692,-151.92,0.00012292,2]
[327544493,1716210632702,-151.92,0.00012296,2]
[327544494,1716210632714,-151.92,0.00012301,2]
[327544495,1716210632724,-151.92,0.00012306,2]
[327544496,1716210632733,-165.21,0.00012365,2]
[327544497,1716210632743,-200.0,0.00012485,2]
[327544498,1716210632752,-508.34,0.00012675,2]
[327544499,1716210632762,-800.0,0.00012695,2]
[327544500,1716210632771,-1565.2946698,0.0001277,2]
[327544501,1716210632780,-14633.7865774,0.0001287,2]
[327544502,1716210632790,-1350.14581,0.0001287,2]
[327544503,1716210632799,-888.8889,0.000129,2]
[327544504,1716210632809,-165.84341446,0.000129,2]
[327544505,1716210632818,-1252.3805558,0.000129,2]
[327544506,1716210632828,-800.0,0.00012986,2]
[327544507,1716210632838,-800.0,0.00012986,2]
[327544508,1716210632847,-800.0,0.00012986,2]
[327544509,1716210632856,-800.0,0.00012986,2]
[327544510,1716210632866,-800.0,0.00012986,2]
[327544511,1716210632876,-800.0,0.00012986,2]
[327544512,1716210632886,-800.0,0.00012986,2]
[327544513,1716210632895,-800.0,0.00012986,2]
[327544514,1716210632906,-155.94924465,0.00012998,2]
[327544515,1716210632915,-373.98502837,0.00012998,2]
[327544516,1716210632925,-20158.7590866,0.00012998,2]
[327544517,1716210632936,-1847.1440702,0.00012998,2]
[327544518,1716210632947,-785.41492,0.00012998,2]
[327544519,1716210632957,-156.03628419,0.00012999,2]
[327544520,1716210632973,-161831.0593983,0.00013,2]
[327544522,1716210638269,-599.33602316,0.000129,2]
[327544523,1716210638279,-3125.32599832,0.00013,2]
[327544531,1716210640739,-579.09225695,0.00013,2]
[327544532,1716210640751,-1006.21,0.00013,2]
[327544623,1716210745605,159.871616,0.00025,30]
[327544627,1716210989154,164.72,0.00024329,30]
[327544634,1716211508754,-267.82545389,0.00010556,2]
[327544635,1716211508778,-2813.5563,0.00010557,2]
[327544636,1716211508802,-155.0,0.00010558,2]
[327544637,1716211508825,-155.0,0.00010558,2]
[327544638,1716211508848,-155.0,0.00010558,2]
[327544639,1716211508874,-273.67,0.00010582,2]
[327544640,1716211508898,-1198.74,0.00012246,2]
[327544641,1716211508922,-19479.23,0.00012262,2]
[327544642,1716211508946,-250.0,0.00012262,2]
[327544643,1716211511108,451.99247167,0.00010555,2]
[327544644,1716211521819,259.98,0.00010783,2]
[327544645,1716211522829,156.90148724,0.00011698,2]
[327544646,1716211531142,451.99247167,0.00012218,2]
[327544648,1716211555263,451.99247167,0.00012218,2]
[327544649,1716211573128,451.99247167,0.00012218,2]
[327544651,1716211589134,451.99247167,0.00012218,2]
[327544653,1716211609124,451.99247167,0.00012218,2]
[327544654,1716211631131,233.37039321,0.00012218,2]
[327544665,1716211832541,-155.0,0.00012263,2]
[327544666,1716211832553,-267.82545389,0.00012263,2]
[327544667,1716211832563,-125.23048041,0.00012264,2]
[327544668,1716211832625,-2688.32581959,0.00012264,2]
[327544673,1716211832953,-534.66822469,0.00012265,2]
[327544674,1716211832968,-250.0,0.00012272,2]
[327544675,1716211832978,-1000.0,0.00012273,2]
[327544676,1716211832988,-250.0,0.00012701,2]
[327544677,1716211832999,-1565.2946698,0.00012718,2]
[327544678,1716211833010,-419.73968153,0.0001287,2]
[327544679,1716211833022,-352.06104211,0.0001287,2]
[327544680,1716211833057,-603.32078636,0.0001287,2]
[327544681,1716211833068,-200.0,0.00012895,2]
[327544682,1716211833077,-500.0,0.00012895,2]
[327544683,1716211833086,-200.0,0.00012896,2]
[327544684,1716211833096,-500.0,0.00012896,2]
[327544685,1716211833104,-164.67921364,0.00012896,2]
[327544686,1716211833117,-335.32078636,0.00012896,2]
[327544687,1716211833127,-499.99,0.00012896,2]
[327544688,1716211833136,-3135.1335,0.000129,2]
[327544689,1716211833146,-2925.1475,0.000129,2]
[327544690,1716211833155,-525.20583828,0.000129,2]
[327544691,1716211833164,-151.03088023,0.000129,2]
[327544692,1716211833174,-1782.0,0.000129,2]
[327544693,1716211833183,-198.58086388,0.000129,2]
[327544694,1716211833192,-1148.01550952,0.000129,2]
[327544695,1716211833201,-180.57732632,0.000129,2]
[327544696,1716211833211,-1734.84951826,0.000129,2]
[327544697,1716211833220,-165.89183315,0.0001299,2]
[327544698,1716211833230,-1952.72081127,0.00012998,5]
[327544699,1716211833239,-6044.19897114,0.00012998,2]
[327544700,1716211833248,-189.61555562,0.00012998,2]
[327544701,1716211833259,-184.20292855,0.00012998,2]
[327544702,1716211833268,-168.37955163,0.00012999,2]
[327544703,1716211833277,-2934.13602466,0.00012999,2]
[327544704,1716211833287,-295787.23879211,0.00013,2]
[327544711,1716211838459,-450.53975799,0.000129,2]
[327544712,1716211838470,-1467.06801233,0.00012999,2]
[327544713,1716211838480,-13100.3917676,0.00013,2]
[327544714,1716211838534,-9412.51630002,0.00013,2]
[327544715,1716211838719,-1085.0,0.00013,2]
[327544887,1716211840436,-16143.35957632,0.00013,2]
[327544890,1716211840448,-539.06283141,0.00013,2]
[327544892,1716211840460,-382.72867659,0.00013,2]
[327544914,1716211840663,-127294.36480378,0.00013,2]
[327544916,1716211840675,-1434.8542506,0.00013,2]
[327544925,1716211840758,-368.20071861,0.00013,2]
[327544927,1716211840770,-488.73793469,0.00013,2]
[327544930,1716211840781,-10044.09999998,0.00013,2]
[327544937,1716211840847,-773.40000003,0.00013,2]
[327545132,1716211843702,-733.53400616,0.00012999,2]
[327545133,1716211843714,-111482.38698595,0.00013,2]
[327545134,1716211843726,-145142.55812694,0.00013,2]
[327545166,1716211846628,-267.82545389,0.00012999,2]
[327545167,1716211846638,-366.76700308,0.00012999,2]
[327545168,1716211846648,-3120.10431522,0.00013,2]
[327545169,1716211846662,-671.58,0.00013,2]
[327545184,1716211895316,3034.0104,0.00011168,2]
[327545207,1716211941587,167.96,0.0001165,2]
[327545221,1716211992244,200.0,0.00011556,2]
[327545222,1716211992641,200.0,0.00011557,2]
[327545223,1716211996432,1000.0,0.00011557,2]
[327545224,1716211999220,200.0,0.00011556,2]
[327545225,1716211999685,200.0,0.00011557,2]
[327545241,1716212067349,254.69,0.0001076,2]
[327545290,1716212229021,1978.438858,0.00012204,2]
[327545296,1716212255772,1410.45488818,0.00012166,2]
[327545303,1716212283721,627.99,0.00012256,2]
[327545305,1716212288863,2345.45738946,0.00012255,2]
[327545368,1716212534004,241.95,0.00010097,2]
[327545507,1716212986801,167.96,9.316e-05,2]
[327545518,1716213031668,-267.82545389,0.00011606,2]
[327545519,1716213031679,-428.48017839,0.00011607,2]
[327545520,1716213031689,-155.0,0.00011608,2]
[327545521,1716213031698,-2813.5563,0.00011609,2]
[327545522,1716213031708,-7007.45,0.0001161,2]
[327545523,1716213031718,-1644.90946051,0.00011765,2]
[327545524,1716213031727,-1675.05,0.0001177,2]
[327545525,1716213031737,-250.0,0.00011781,2]
[327545526,1716213031757,-563.16,0.00011786,2]
[327545527,1716213031771,-224.99,0.00011786,2]
[327545528,1716213031782,-250.0,0.00011841,2]
[327545529,1716213031792,-150.0,0.0001189,2]
[327545530,1716213031803,-23890.0,0.0001189,2]
[327545531,1716213031813,-150.0,0.0001211,2]
[327545532,1716213031823,-165.21,0.00012148,2]
[327545533,1716213031833,-1000.0,0.00012195,2]
[327545534,1716213031842,-797.65,0.00012196,2]
[327545535,1716213031852,-152.49,0.00012254,2]
[327545536,1716213031862,-241.95,0.00012361,2]
[327545537,1716213031872,-200.0,0.00012424,2]
[327545538,1716213031882,-152.49,0.00012573,2]
[327545539,1716213031892,-800.0,0.00012675,2]
[327545540,1716213031901,-2251.82,0.00012675,2]
[327545541,1716213031911,-1563.22022002,0.00012708,2]
[327545542,1716213031921,-659.5783,0.000128,2]
[327545543,1716213031932,-7500.0,0.000128,2]
[327545544,1716213031942,-680.11866107,0.000128,2]
[327545545,1716213031951,-499.99,0.0001287,2]
[327545546,1716213031961,-18393.98144727,0.0001287,2]
[327545547,1716213031971,-155.11324623,0.00012889,2]
[327545548,1716213031980,-165.5321939,0.0001289,2]
[327545549,1716213031990,-152.49,0.00012892,2]
[327545550,1716213032000,-324.29832917,0.00012897,2]
[327545551,1716213032010,-1217.53250122,0.00012897,2]
[327545552,1716213032019,-2310.46693299,0.00012897,2]
[327545553,1716213032028,-155.0,0.00012897,2]
[327545554,1716213032038,-3091.08716644,0.00012897,2]
[327545555,1716213032048,-155.0,0.00012897,2]
[327545556,1716213032059,-1244.75977175,0.00012897,2]
[327545557,1716213032070,-13022.47696897,0.00012897,2]
[327545558,1716213032082,-803.37762482,0.00012897,2]
[327545559,1716213032091,-155.0,0.00012897,2]
[327545560,1716213032102,-364.27737293,0.00012897,2]
[327545561,1716213032114,-757.44991753,0.00012897,2]
[327545562,1716213032124,-244.28954937,0.00012897,2]
[327545563,1716213032134,-7225.97918873,0.00012897,5]
[327545564,1716213032144,-204.82516016,0.00012897,2]
[327545565,1716213032155,-155.68524744,0.00012897,2]
[327545566,1716213032164,-198.77542269,0.00012897,2]
[327545567,1716213032174,-212.65714406,0.00012897,2]
[327545568,1716213032184,-2221.82871026,0.00012898,2]
[327545569,1716213032194,-883.0724361,0.00012899,2]
[327545570,1716213032203,-271110.25359564,0.00012899,2]
[327545571,1716213032213,-1000.0,0.000129,2]
[327545572,1716213032223,-80097.7278,0.000129,2]
[327545573,1716213032233,-69255.93270611,0.000129,2]
[327545574,1716213032265,-11052.77663545,0.000129,2]
[327545575,1716213032278,-160829.30000001,0.000129,2]
[327545576,1716213032323,-3861.99065843,0.000129,2]
[327545577,1716213032333,-168.96764124,0.000129,2]
[327545578,1716213032343,-245.45492616,0.000129,2]
[327545579,1716213032353,-245.45492611,0.000129,2]
[327545580,1716213032363,-245.45492611,0.000129,2]
[327545581,1716213032373,-245.45492611,0.000129,2]
[327545582,1716213032383,-245.45492611,0.000129,2]
[327545583,1716213032393,-245.45492611,0.000129,2]
[327545584,1716213032404,-245.45492611,0.000129,2]
[327545585,1716213032414,-245.45492611,0.000129,2]
[327545586,1716213032424,-196.46248303,0.000129,2]
[327545587,1716213032435,-1946.70295366,0.000129,2]
[327545588,1716213032445,-1443.05071005,0.0001298,2]
[327545589,1716213032457,-613.20569948,0.0001298,2]
[327545592,1716213032801,-4000.0,0.0001298,2]
[327545594,1716213032813,-1230617.78528527,0.0001298,2]
[327545640,1716213038489,-2813.5563,0.00011606,2]
[327545641,1716213038499,-32826.04565673,0.0001298,2]
[327545642,1716213038511,-151.81,0.0001299,2]
[327545643,1716213038520,-165.5321939,0.0001299,2]
[327545644,1716213038529,-305922.53342973,0.00012997,2]
[327545645,1716213038538,-778.7519179,0.00012997,2]
[327545646,1716213038547,-19987.7439319,0.00012997,2]
[327545647,1716213038557,-1831.4739773,0.00012997,2]
[327545648,1716213038566,-1747.59932335,0.00012999,2]
[327545649,1716213038575,-183.38350154,0.00012999,2]
[327545650,1716213038585,-151.0,0.00012999,2]
[327545651,1716213038594,-151.0,0.00012999,2]
[327545652,1716213038603,-217.617309,0.00012999,2]
[327545654,1716213038612,-217.617309,0.00012999,2]
[327545656,1716213038623,-153.353508,0.00012999,2]
[327545658,1716213038632,-151.0,0.00012999,2]
[327545660,1716213038641,-151.0,0.00012999,2]
[327545662,1716213038650,-151.0,0.00012999,2]
[327545664,1716213038660,-151.0,0.00012999,2]
[327545666,1716213038669,-151.0,0.00012999,2]
[327545668,1716213038678,-151.0,0.00012999,2]
[327545670,1716213038687,-151.0,0.00012999,2]
[327545672,1716213038696,-151.0,0.00012999,2]
[327545674,1716213038705,-151.0,0.00012999,2]
[327545676,1716213038715,-151.0,0.00012999,2]
[327545678,1716213038724,-3097.215543,0.00012999,2]